[Event "EYCC Open-U16 2019"]
[Site "Bratislava"]
[Date "2019.08.08"]
[Round "7.17"]
[White "Risteski, Emil"]
[Black "Alonso Garcia, Aaron"]
[Result "0-1"]
[ECO "B47"]
[WhiteElo "2150"]
[BlackElo "2248"]
[Annotator "NA"]
[PlyCount "128"]
[EventDate "2019.08.02"]
[EventType "swiss"]
[EventCountry "SVK"]
[SourceTitle "playchess.com"]
[Source "ChessBase"]
[SourceQuality "1"]
[TimeControl "40/5400+30:1800+30"]

1. e4 {[%emt 0:00:00]} c5 {[%emt 0:00:00]} 2. Nf3 {[%emt 0:00:00]} e6 {[%emt 0:00:10]} 3. d4 {[%emt 0:00:00]} cxd4 {[%emt 0:00:03]} 4. Nxd4 {[%emt 0:00:00]} Nc6 {[%emt 0:00:05]} 5. Nc3 {[%emt 0:00:49]} Qc7 {[%emt 0:00:14]} 6. g3 {[%emt 0:08:39]} a6 {[%emt 0:02:13]} 7. Bg2 {[%emt 0:00:37]} Nf6 {[%emt 0:00:28]} 8. O-O {[%emt 0:01:34]} Nxd4 {[%emt 0:00:48]} 9. Qxd4 {[%emt 0:00:05]} Bc5 {[%emt 0:00:03]} 10. Qd3 {[%emt 0:00:51]} O-O {[%emt 0:04:46]} 11. Bf4 {[%emt 0:04:04]} d6 {[%emt 0:04:52]} 12. Rad1 {[%emt 0:03:41]} Ne8 {[%emt 0:03:17]} 13. Na4 {[%emt 0:02:28]} e5 {[%emt 0:01:33]} 14. Nxc5 {[%emt 0:08:43]} dxc5 {[%emt 0:01:36]} 15. Be3 {[%emt 0:00:09]} Be6 {[%emt 0:04:47]} 16. Qc3 {[%emt 0:02:39]} Rc8 {[%emt 0:06:15]} 17. f4 {[%emt 0:00:39]} f6 {[%emt 0:09:48]} 18. f5 {[%emt 0:05:13]} Bf7 {[%emt 0:00:01]} 19. g4 {[%emt 0:01:53]} Nd6 {[%emt 0:02:20]} 20. g5 {[%emt 0:00:34]} Rfd8 {[%emt 0:18:15]} 21. gxf6 {[%emt 0:02:51]} gxf6 {[%emt 0:00:01]} 22. Bh6 {[%emt 0:05:27]} Kh8 {[%emt 0:03:12]} 23. Qg3 {[%emt 0:01:00]} Ne8 {[%emt 0:00:05]} 24. Kh1 {[%emt 0:04:50]} Bh5 {[%emt 0:10:26]} 25. Rde1 {[%emt 0:01:30]} Qf7 {[%emt 0:02:58]} 26. Rg1 {[%emt 0:02:28]} Nd6 {[%emt 0:03:24]} 27. Bf3 {[%emt 0:14:25]} Bxf3+ {[%emt 0:00:06]} 28. Qxf3 {[%emt 0:00:04]} Rg8 {[%emt 0:00:03]} 29. Rxg8+ {[%emt 0:01:15]} Rxg8 {[%emt 0:00:16]} 30. Rd1 {[%emt 0:00:56]} Nxe4 {[%emt 0:05:59]} 31. Be3 {[%emt 0:05:59]} Ng5 {[%emt 0:01:30]} 32. Bxg5 {[%emt 0:00:39]} Rxg5 {[%emt 0:00:41]} 33. Rd8+ {[%emt 0:00:08]} Rg8 {[%emt 0:02:14]} 34. Qd5 {[%emt 0:03:02]} Qxd5+ {[%emt 0:01:41]} 35. Rxd5 {[%emt 0:00:05]} Kg7 {[%emt 0:05:32]} 36. Kg2 {[%emt 0:02:21]} Kf7+ {[%emt 0:00:16]} 37. Kf3 {[%emt 0:00:11]} Ke7 {[%emt 0:00:01]} 38. Rxc5 {[%emt 0:00:12]} Kd6 {[%emt 0:00:08]} 39. Rc3 {[%emt 0:00:28]} Rg5 {[%emt 0:00:18]} 40. Rd3+ {[%emt 0:00:00]} Kc7 {[%emt 0:00:00]} 41. Rc3+ {[%emt 0:11:27]} Kd7 {[%emt 0:07:52]} 42. Rd3+ {[%emt 0:00:17]} Ke7 {[%emt 0:00:01]} 43. Ke4 {[%emt 0:00:10]} h5 {[%emt 0:02:08]} 44. Rb3 {[%emt 0:00:07]} Rg4+ {[%emt 0:01:23]} 45. Kd5 {[%emt 0:00:10]} b5 {[%emt 0:03:16]} 46. Ra3 {[%emt 0:00:12]} Rd4+ {[%emt 0:01:56]} 47. Kc5 {[%emt 0:00:02]} Rc4+ {[%emt 0:00:04]} 48. Kd5 {[%emt 0:00:03]} Rxc2 {[%emt 0:00:35]} 49. Rxa6 {[%emt 0:00:43]} Rd2+ {[%emt 0:00:53]} 50. Kc5 {[%emt 0:00:04]} Rxh2 {[%emt 0:11:33]} 51. Ra7+ {[%emt 0:00:21]} Kf8 {[%emt 0:00:44]} 52. Kd5 {[%emt 0:01:54]} Rc2 {[%emt 0:02:49]} 53. Ke6 {[%emt 0:05:27]} Rc6+ {[%emt 0:05:20]} 54. Kd7 {[%emt 0:00:09]} Rc4 {[%emt 0:00:26]} 55. Ke6 {[%emt 0:00:05]} Ra4 {[%emt 0:00:09]} 56. Rb7 {[%emt 0:03:32]} Ra6+ {[%emt 0:01:58]} 57. Kd5 {[%emt 0:00:05]} Rxa2 {[%emt 0:00:14]} 58. Rxb5 {[%emt 0:00:16]} Kg7 {[%emt 0:00:15]} 59. b4 {[%emt 0:01:48]} Kh6 {[%emt 0:02:49]} 60. Rb8 {[%emt 0:00:14]} Kg5 {[%emt 0:00:25]} 61. Ke6 {[%emt 0:01:10]} e4 {[%emt 0:02:06]} 62. b5 {[%emt 0:05:46]} Rb2 {[%emt 0:00:48]} 63. Rg8+ {[%emt 0:01:08]} Kf4 {[%emt 0:00:01]} 64. Kxf6 {[%emt 0:00:01]} Rxb5 {[%emt 0:00:17]} 0-1

[Event "EYCC Open-U16 2019"]
[Site "Bratislava"]
[Date "2019.08.08"]
[Round "7.18"]
[White "Niedbala, Bartlomiej"]
[Black "Kacharava, Nikolozi"]
[Result "1/2-1/2"]
[ECO "A41"]
[WhiteElo "2152"]
[BlackElo "2431"]
[Annotator "NA"]
[PlyCount "99"]
[EventDate "2019.08.02"]
[EventType "swiss"]
[EventCountry "SVK"]
[SourceTitle "playchess.com"]
[Source "ChessBase"]
[SourceQuality "1"]
[TimeControl "40/5400+30:1800+30"]

1. d4 {[%emt 0:00:00]} d6 {[%emt 0:00:00]} 2. Bf4 {[%emt 0:02:45]} Nf6 {[%emt 0:00:30]} 3. e3 {[%emt 0:00:26]} Nbd7 {[%emt 0:01:46]} 4. Nf3 {[%emt 0:03:23]} Nh5 {[%emt 0:01:01]} 5. Bg5 {[%emt 0:01:50]} h6 {[%emt 0:01:47]} 6. Bh4 {[%emt 0:00:20]} g5 {[%emt 0:01:21]} 7. Nfd2 {[%emt 0:02:59]} Ndf6 {[%emt 0:05:11]} 8. Be2 {[%emt 0:06:31]} gxh4 {[%emt 0:07:30]} 9. Bxh5 {[%emt 0:00:39]} h3 {[%emt 0:00:29]} 10. Bf3 {[%emt 0:16:11]} hxg2 {[%emt 0:02:50]} 11. Bxg2 {[%emt 0:03:15]} Rg8 {[%emt 0:02:07]} 12. Bf3 {[%emt 0:02:56]} c6 {[%emt 0:02:41]} 13. Nc3 {[%emt 0:01:22]} Bf5 {[%emt 0:05:32]} 14. Nde4 {[%emt 0:04:44]} Nxe4 {[%emt 0:06:12]} 15. Nxe4 {[%emt 0:00:50]} Qb6 {[%emt 0:01:59]} 16. Ng3 {[%emt 0:05:49]} Bd7 {[%emt 0:02:15]} 17. Qd3 {[%emt 0:07:14]} Qxb2 {[%emt 0:12:29]} 18. O-O {[%emt 0:00:29]} Qb6 {[%emt 0:01:16]} 19. Rab1 {[%emt 0:06:17]} Qc7 {[%emt 0:01:15]} 20. Rb3 {[%emt 0:04:14]} d5 {[%emt 0:11:50]} 21. c4 {[%emt 0:01:40]} e6 {[%emt 0:06:31]} 22. cxd5 {[%emt 0:03:43]} cxd5 {[%emt 0:00:55]} 23. e4 {[%emt 0:02:16]} dxe4 {[%emt 0:00:56]} 24. Bxe4 {[%emt 0:00:09]} Bc6 {[%emt 0:01:52]} 25. Rfb1 {[%emt 0:10:51]} Bxe4 {[%emt 0:06:53]} 26. Qxe4 {[%emt 0:00:27]} Qc6 {[%emt 0:00:21]} 27. d5 {[%emt 0:01:10]} Qxd5 {[%emt 0:00:57]} 28. Qxd5 {[%emt 0:00:33]} exd5 {[%emt 0:00:05]} 29. Rxb7 {[%emt 0:01:08]} Bc5 {[%emt 0:03:04]} 30. R1b5 {[%emt 0:02:05]} Bb6 {[%emt 0:03:39]} 31. Rxd5 {[%emt 0:00:19]} Rg6 {[%emt 0:01:16]} 32. Kg2 {[%emt 0:03:50]} Rd8 {[%emt 0:03:45]} 33. Rxd8+ {[%emt 0:01:45]} Bxd8 {[%emt 0:01:49]} 34. Rxa7 {[%emt 0:01:15]} Bh4 {[%emt 0:02:45]} 35. Kh3 {[%emt 0:01:08]} Bxg3 {[%emt 0:01:03]} 36. hxg3 {[%emt 0:00:10]} Rc6 {[%emt 0:00:20]} 37. f4 {[%emt 0:00:27]} Kf8 {[%emt 0:00:22]} 38. a4 {[%emt 0:00:56]} Rc4 {[%emt 0:00:48]} 39. Ra8+ {[%emt 0:01:01]} Kg7 {[%emt 0:00:07]} 40. a5 {[%emt 0:00:00]} Ra4 {[%emt 0:00:00]} 41. Kg4 {[%emt 0:01:43]} Ra3 {[%emt 0:02:48]} 42. a6 {[%emt 0:03:09]} Kf6 {[%emt 0:01:31]} 43. a7 {[%emt 0:00:35]} Ra1 {[%emt 0:01:19]} 44. Rh8 {[%emt 0:02:20]} Rxa7 {[%emt 0:00:33]} 45. Rxh6+ {[%emt 0:00:02]} Kg7 {[%emt 0:00:06]} 46. Rb6 {[%emt 0:00:06]} Ra5 {[%emt 0:01:33]} 47. Rb7 {[%emt 0:00:47]} Kg6 {[%emt 0:01:18]} 48. Rb8 {[%emt 0:01:57]} f6 {[%emt 0:02:17]} 49. Rb6 {[%emt 0:04:03]} Rc5 {[%emt 0:00:48]} 50. Rb8 {[%emt 0:00:17]} 1/2-1/2

[Event "EYCC Open-U16 2019"]
[Site "Bratislava"]
[Date "2019.08.08"]
[Round "7.19"]
[White "Olsen, Filip Boe"]
[Black "Marn, Jan"]
[Result "1/2-1/2"]
[ECO "A13"]
[WhiteElo "2383"]
[BlackElo "2215"]
[Annotator "NA"]
[PlyCount "78"]
[EventDate "2019.08.02"]
[EventType "swiss"]
[EventCountry "SVK"]
[SourceTitle "playchess.com"]
[Source "ChessBase"]
[SourceQuality "1"]
[TimeControl "40/5400+30:1800+30"]

1. c4 {[%emt 0:00:00]} e6 {[%emt 0:00:00]} 2. g3 {[%emt 0:00:00]} d5 {[%emt 0:00:00]} 3. Bg2 {[%emt 0:00:04]} Nf6 {[%emt 0:00:21]} 4. Nf3 {[%emt 0:00:19]} c6 {[%emt 0:00:34]} 5. Qc2 {[%emt 0:00:59]} Nbd7 {[%emt 0:00:26]} 6. d4 {[%emt 0:00:39]} Bb4+ {[%emt 0:00:10]} 7. Bd2 {[%emt 0:00:55]} Bd6 {[%emt 0:00:06]} 8. O-O {[%emt 0:00:26]} O-O {[%emt 0:00:16]} 9. Bg5 {[%emt 0:01:20]} h6 {[%emt 0:00:08]} 10. Bxf6 {[%emt 0:00:17]} Qxf6 {[%emt 0:00:06]} 11. Nbd2 {[%emt 0:03:11]} dxc4 {[%emt 0:16:13]} 12. Ne4 {[%emt 0:03:28]} Qf5 {[%emt 0:00:08]} 13. Nfd2 {[%emt 0:08:25]} e5 {[%emt 0:09:20]} 14. Nxc4 {[%emt 0:01:53]} Be7 {[%emt 0:01:55]} 15. Ne3 {[%emt 0:09:38]} Qe6 {[%emt 0:07:23]} 16. Nc5 {[%emt 0:04:08]} Nxc5 {[%emt 0:01:23]} 17. dxc5 {[%emt 0:00:12]} f5 {[%emt 0:00:51]} 18. b4 {[%emt 0:02:44]} a5 {[%emt 0:09:44]} 19. a3 {[%emt 0:03:23]} e4 {[%emt 0:18:05]} 20. Nc4 {[%emt 0:04:45]} axb4 {[%emt 0:00:06]} 21. axb4 {[%emt 0:00:29]} Rxa1 {[%emt 0:00:08]} 22. Rxa1 {[%emt 0:00:13]} Rd8 {[%emt 0:01:23]} 23. e3 {[%emt 0:03:35]} Bf8 {[%emt 0:12:18]} 24. Bf1 {[%emt 0:02:22]} Kh8 {[%emt 0:00:33]} 25. Ra8 {[%emt 0:03:22]} Qe8 {[%emt 0:02:53]} 26. Rb8 {[%emt 0:03:39]} Qe7 {[%emt 0:01:17]} 27. Qc3 {[%emt 0:03:56]} Be6 {[%emt 0:01:03]} 28. Rxd8 {[%emt 0:04:09]} Qxd8 {[%emt 0:00:34]} 29. Qe5 {[%emt 0:01:28]} Bxc4 {[%emt 0:01:33]} 30. Bxc4 {[%emt 0:01:28]} Qd1+ {[%emt 0:00:08]} 31. Bf1 {[%emt 0:00:41]} Qd7 {[%emt 0:00:04]} 32. Qb8 {[%emt 0:01:06]} Qe7 {[%emt 0:00:53]} 33. Bc4 {[%emt 0:01:35]} Kh7 {[%emt 0:06:23]} 34. Qc8 {[%emt 0:02:07]} g6 {[%emt 0:00:19]} 35. Be6 {[%emt 0:01:54]} h5 {[%emt 0:03:49]} 36. Kg2 {[%emt 0:02:05]} Bg7 {[%emt 0:00:31]} 37. Bd7 {[%emt 0:03:14]} Qg5 {[%emt 0:00:36]} 38. Qxb7 {[%emt 0:05:24]} Qg4 {[%emt 0:00:07]} 39. Bxc6 {[%emt 0:00:16]} Qf3+ {[%emt 0:00:06]} 1/2-1/2

[Event "EYCC Open-U16 2019"]
[Site "Bratislava"]
[Date "2019.08.08"]
[Round "7.20"]
[White "Kasioumis, Vasilios"]
[Black "Sorensen, Hampus"]
[Result "1/2-1/2"]
[ECO "C54"]
[WhiteElo "2015"]
[BlackElo "2352"]
[Annotator "NA"]
[PlyCount "99"]
[EventDate "2019.08.02"]
[EventType "swiss"]
[EventCountry "SVK"]
[SourceTitle "playchess.com"]
[Source "ChessBase"]
[SourceQuality "1"]
[TimeControl "40/5400+30:1800+30"]

1. e4 {[%emt 0:00:00]} e5 {[%emt 0:00:00]} 2. Nf3 {[%emt 0:00:00]} Nc6 {[%emt 0:00:00]} 3. Bc4 {[%emt 0:00:00]} Bc5 {[%emt 0:00:40]} 4. c3 {[%emt 0:00:00]} Nf6 {[%emt 0:00:20]} 5. d3 {[%emt 0:00:00]} d6 {[%emt 0:01:37]} 6. O-O {[%emt 0:00:05]} a5 {[%emt 0:04:48]} 7. a4 {[%emt 0:00:13]} O-O {[%emt 0:01:51]} 8. Bg5 {[%emt 0:00:09]} h6 {[%emt 0:03:39]} 9. Bh4 {[%emt 0:00:04]} Be6 {[%emt 0:01:55]} 10. Nbd2 {[%emt 0:10:26]} Ba7 {[%emt 0:01:51]} 11. Qb3 {[%emt 0:05:10]} Qc8 {[%emt 0:08:49]} 12. Bxf6 {[%emt 0:05:59]} gxf6 {[%emt 0:00:03]} 13. Nh4 {[%emt 0:03:02]} Ne7 {[%emt 0:01:22]} 14. Bxe6 {[%emt 0:20:46]} fxe6 {[%emt 0:01:34]} 15. Qd1 {[%emt 0:07:52]} Kh7 {[%emt 0:04:16]} 16. Kh1 {[%emt 0:01:47]} f5 {[%emt 0:12:44]} 17. Qe2 {[%emt 0:00:57]} Qd7 {[%emt 0:17:36]} 18. Nc4 {[%emt 0:03:36]} Rg8 {[%emt 0:04:05]} 19. h3 {[%emt 0:06:35]} f4 {[%emt 0:04:27]} 20. b3 {[%emt 0:05:13]} Nc6 {[%emt 0:01:40]} 21. Rad1 {[%emt 0:00:45]} Qg7 {[%emt 0:02:07]} 22. Rg1 {[%emt 0:02:24]} d5 {[%emt 0:00:43]} 23. Nd2 {[%emt 0:00:05]} d4 {[%emt 0:00:21]} 24. c4 {[%emt 0:00:19]} Bc5 {[%emt 0:04:19]} 25. g3 {[%emt 0:04:39]} Qe7 {[%emt 0:04:08]} 26. Ndf3 {[%emt 0:02:21]} fxg3 {[%emt 0:00:13]} 27. Rxg3 {[%emt 0:00:50]} Rxg3 {[%emt 0:01:59]} 28. fxg3 {[%emt 0:00:06]} Rf8 {[%emt 0:00:51]} 29. Rf1 {[%emt 0:02:48]} Qg7 {[%emt 0:00:43]} 30. Kh2 {[%emt 0:00:17]} Be7 {[%emt 0:00:20]} 31. Ng2 {[%emt 0:00:07]} Nb8 {[%emt 0:02:20]} 32. Nd2 {[%emt 0:06:45]} Nd7 {[%emt 0:00:30]} 33. h4 {[%emt 0:00:41]} Bb4 {[%emt 0:02:06]} 34. Rxf8 {[%emt 0:02:22]} Qxf8 {[%emt 0:00:43]} 35. Nf3 {[%emt 0:00:06]} Qg7 {[%emt 0:01:44]} 36. Kh3 {[%emt 0:00:08]} Nc5 {[%emt 0:00:40]} 37. Qd1 {[%emt 0:00:05]} Qf6 {[%emt 0:00:52]} 38. Nh2 {[%emt 0:00:08]} Nd7 {[%emt 0:01:16]} 39. Ng4 {[%emt 0:02:35]} Qf7 {[%emt 0:01:28]} 40. Qc1 {[%emt 0:00:00]} Bf8 {[%emt 0:00:00]} 41. Qd2 {[%emt 0:03:49]} b6 {[%emt 0:00:24]} 42. Qd1 {[%emt 0:08:43]} h5 {[%emt 0:03:07]} 43. Nh2 {[%emt 0:00:06]} Bh6 {[%emt 0:00:15]} 44. g4 {[%emt 0:01:37]} hxg4+ {[%emt 0:00:48]} 45. Nxg4 {[%emt 0:00:15]} Bg7 {[%emt 0:03:05]} 46. Kg3 {[%emt 0:01:03]} Kg8 {[%emt 0:06:47]} 47. Qc1 {[%emt 0:03:29]} Qg6 {[%emt 0:06:14]} 48. Kh3 {[%emt 0:00:22]} Qf7 {[%emt 0:06:15]} 49. Kg3 {[%emt 0:00:19]} Qg6 {[%emt 0:00:39]} 50. Kh3 {[%emt 0:00:06]} 1/2-1/2

[Event "EYCC Open-U16 2019"]
[Site "Bratislava"]
[Date "2019.08.08"]
[Round "7.21"]
[White "Boyer, Mahel"]
[Black "Gavrilin, Roman"]
[Result "1/2-1/2"]
[ECO "B20"]
[WhiteElo "2295"]
[BlackElo "2131"]
[Annotator "NA"]
[PlyCount "82"]
[EventDate "2019.08.02"]
[EventType "swiss"]
[EventCountry "SVK"]
[SourceTitle "playchess.com"]
[Source "ChessBase"]
[SourceQuality "1"]
[TimeControl "40/5400+30:1800+30"]

1. e4 {[%emt 0:00:00]} c5 {[%emt 0:00:00]} 2. d3 {[%emt 0:00:00]} Nc6 {[%emt 0:00:27]} 3. g3 {[%emt 0:00:00]} d5 {[%emt 0:01:05]} 4. Nd2 {[%emt 0:00:21]} Nf6 {[%emt 0:00:31]} 5. Bg2 {[%emt 0:00:04]} g6 {[%emt 0:00:59]} 6. Ngf3 {[%emt 0:00:12]} Bg7 {[%emt 0:00:21]} 7. O-O {[%emt 0:00:05]} O-O {[%emt 0:00:15]} 8. c3 {[%emt 0:02:00]} e5 {[%emt 0:01:57]} 9. a3 {[%emt 0:02:51]} dxe4 {[%emt 0:10:57]} 10. dxe4 {[%emt 0:00:22]} Qc7 {[%emt 0:06:45]} 11. Qe2 {[%emt 0:00:49]} h6 {[%emt 0:13:58]} 12. b4 {[%emt 0:01:03]} b6 {[%emt 0:03:34]} 13. Rd1 {[%emt 0:04:55]} Be6 {[%emt 0:01:19]} 14. h3 {[%emt 0:05:13]} Rfd8 {[%emt 0:00:47]} 15. Qe3 {[%emt 0:00:44]} c4 {[%emt 0:07:53]} 16. Bf1 {[%emt 0:04:14]} b5 {[%emt 0:00:12]} 17. a4 {[%emt 0:00:09]} a6 {[%emt 0:02:35]} 18. Bb2 {[%emt 0:00:07]} Bf8 {[%emt 0:03:45]} 19. Rdc1 {[%emt 0:02:36]} Nd7 {[%emt 0:06:37]} 20. a5 {[%emt 0:01:57]} Nf6 {[%emt 0:04:26]} 21. Kh2 {[%emt 0:00:52]} Rd7 {[%emt 0:02:00]} 22. Be2 {[%emt 0:00:16]} Rad8 {[%emt 0:01:42]} 23. Rg1 {[%emt 0:00:11]} Bg7 {[%emt 0:08:03]} 24. Nf1 {[%emt 0:04:15]} Nh7 {[%emt 0:07:13]} 25. Qc1 {[%emt 0:04:11]} Qa7 {[%emt 0:04:43]} 26. Rg2 {[%emt 0:02:44]} Nf6 {[%emt 0:00:54]} 27. Qc2 {[%emt 0:00:44]} Rd6 {[%emt 0:02:00]} 28. Bc1 {[%emt 0:00:15]} Qd7 {[%emt 0:00:40]} 29. Be3 {[%emt 0:00:08]} Bxh3 {[%emt 0:00:12]} 30. Rg1 {[%emt 0:00:20]} Ng4+ {[%emt 0:02:06]} 31. Kh1 {[%emt 0:00:02]} Bxf1 {[%emt 0:01:43]} 32. Bxf1 {[%emt 0:00:01]} Nxe3 {[%emt 0:00:10]} 33. fxe3 {[%emt 0:00:01]} Qg4 {[%emt 0:01:42]} 34. Nh2 {[%emt 0:00:05]} Qg5 {[%emt 0:00:33]} 35. Qf2 {[%emt 0:00:28]} Qf6 {[%emt 0:01:30]} 36. Nf3 {[%emt 0:00:33]} Rd1 {[%emt 0:00:34]} 37. Bh3 {[%emt 0:00:28]} Rxa1 {[%emt 0:00:26]} 38. Rxa1 {[%emt 0:00:01]} Rd6 {[%emt 0:01:38]} 39. Rf1 {[%emt 0:00:24]} Nd8 {[%emt 0:01:07]} 40. Qe2 {[%emt 0:00:00]} Qe7 {[%emt 0:00:00]} 41. Rd1 {[%emt 0:01:20]} Bf6 {[%emt 0:16:38]} 1/2-1/2

[Event "EYCC Open-U16 2019"]
[Site "Bratislava"]
[Date "2019.08.08"]
[Round "7.22"]
[White "Geher, Koppany"]
[Black "Vorisek, Jakub"]
[Result "1-0"]
[ECO "B37"]
[WhiteElo "2211"]
[BlackElo "2071"]
[Annotator "NA"]
[PlyCount "53"]
[EventDate "2019.08.02"]
[EventType "swiss"]
[EventCountry "SVK"]
[SourceTitle "playchess.com"]
[Source "ChessBase"]
[SourceQuality "1"]
[TimeControl "40/5400+30:1800+30"]

1. e4 {[%emt 0:00:00]} c5 {[%emt 0:00:00]} 2. Nf3 {[%emt 0:00:00]} Nc6 {[%emt 0:00:13]} 3. d4 {[%emt 0:00:00]} cxd4 {[%emt 0:00:20]} 4. Nxd4 {[%emt 0:00:00]} g6 {[%emt 0:00:34]} 5. c4 {[%emt 0:00:22]} Bg7 {[%emt 0:01:08]} 6. Nc2 {[%emt 0:00:13]} Nf6 {[%emt 0:03:45]} 7. Nc3 {[%emt 0:00:09]} d6 {[%emt 0:00:55]} 8. Be2 {[%emt 0:00:06]} O-O {[%emt 0:00:20]} 9. O-O {[%emt 0:00:10]} Be6 {[%emt 0:00:52]} 10. f4 {[%emt 0:06:23]} Rc8 {[%emt 0:07:31]} 11. Be3 {[%emt 0:05:44]} Qd7 {[%emt 0:22:01]} 12. Qd2 {[%emt 0:02:51]} Rfd8 {[%emt 0:06:23]} 13. Rae1 {[%emt 0:13:18]} Ne8 {[%emt 0:10:03]} 14. b3 {[%emt 0:11:17]} b6 {[%emt 0:17:08]} 15. Nd4 {[%emt 0:06:31]} Nxd4 {[%emt 0:02:59]} 16. Bxd4 {[%emt 0:00:01]} Bg4 {[%emt 0:01:00]} 17. Bxg4 {[%emt 0:09:26]} Qxg4 {[%emt 0:01:51]} 18. Nd5 {[%emt 0:00:10]} Qd7 {[%emt 0:01:51]} 19. Bxg7 {[%emt 0:01:37]} Nxg7 {[%emt 0:04:46]} 20. f5 {[%emt 0:00:08]} Ne8 {[%emt 0:04:53]} 21. fxg6 {[%emt 0:08:53]} hxg6 {[%emt 0:00:06]} 22. Qg5 {[%emt 0:00:20]} Rc7 {[%emt 0:03:28]} 23. Re3 {[%emt 0:03:27]} Rb7 {[%emt 0:01:31]} 24. Rh3 {[%emt 0:03:02]} Ng7 {[%emt 0:00:23]} 25. Qh6 {[%emt 0:01:58]} Nh5 {[%emt 0:00:18]} 26. Rxh5 {[%emt 0:04:14]} gxh5 {[%emt 0:00:07]} 27. Rf5 {[%emt 0:00:52]} 1-0

[Event "EYCC Open-U16 2019"]
[Site "Bratislava"]
[Date "2019.08.08"]
[Round "7.23"]
[White "Ceres, Dragos"]
[Black "Barak, David"]
[Result "1-0"]
[ECO "B17"]
[WhiteElo "2266"]
[BlackElo "2015"]
[Annotator "NA"]
[PlyCount "79"]
[EventDate "2019.08.02"]
[EventType "swiss"]
[EventCountry "SVK"]
[SourceTitle "playchess.com"]
[Source "ChessBase"]
[SourceQuality "1"]
[TimeControl "40/5400+30:1800+30"]

1. e4 {[%emt 0:00:00]} c6 {[%emt 0:00:00]} 2. d4 {[%emt 0:00:00]} d5 {[%emt 0:00:00]} 3. Nd2 {[%emt 0:00:00]} dxe4 {[%emt 0:00:00]} 4. Nxe4 {[%emt 0:00:00]} Nd7 {[%emt 0:00:22]} 5. Qe2 {[%emt 0:00:46]} e6 {[%emt 0:00:40]} 6. Bf4 {[%emt 0:00:49]} Ndf6 {[%emt 0:05:22]} 7. c3 {[%emt 0:00:03]} Nxe4 {[%emt 0:08:49]} 8. Qxe4 {[%emt 0:00:06]} Nf6 {[%emt 0:00:49]} 9. Qc2 {[%emt 0:00:12]} Bd6 {[%emt 0:04:37]} 10. Bg3 {[%emt 0:02:15]} b6 {[%emt 0:04:53]} 11. Nf3 {[%emt 0:00:23]} Bb7 {[%emt 0:03:49]} 12. Bd3 {[%emt 0:01:29]} Qc7 {[%emt 0:04:18]} 13. O-O {[%emt 0:05:19]} h6 {[%emt 0:04:43]} 14. a4 {[%emt 0:14:05]} O-O {[%emt 0:08:16]} 15. Rad1 {[%emt 0:08:36]} Rac8 {[%emt 0:11:43]} 16. Qe2 {[%emt 0:03:20]} Rfd8 {[%emt 0:09:54]} 17. a5 {[%emt 0:10:10]} c5 {[%emt 0:10:16]} 18. axb6 {[%emt 0:00:19]} axb6 {[%emt 0:01:03]} 19. dxc5 {[%emt 0:03:57]} Qxc5 {[%emt 0:02:09]} 20. Rfe1 {[%emt 0:00:11]} Bxg3 {[%emt 0:11:48]} 21. hxg3 {[%emt 0:00:10]} Rd5 {[%emt 0:00:18]} 22. Nd4 {[%emt 0:20:20]} Rcd8 {[%emt 0:02:59]} 23. Bc4 {[%emt 0:01:23]} R5d6 {[%emt 0:01:37]} 24. Bb3 {[%emt 0:00:40]} Nd5 {[%emt 0:01:41]} 25. Ra1 {[%emt 0:02:30]} Ra8 {[%emt 0:01:46]} 26. Rxa8+ {[%emt 0:01:15]} Bxa8 {[%emt 0:00:01]} 27. Ra1 {[%emt 0:01:51]} Rd8 {[%emt 0:00:57]} 28. Ra7 {[%emt 0:08:53]} Nf6 {[%emt 0:00:17]} 29. Rxf7 {[%emt 0:06:33]} Rxd4 {[%emt 0:00:23]} 30. Rxf6 {[%emt 0:00:42]} Re4 {[%emt 0:00:35]} 31. Bxe6+ {[%emt 0:03:36]} Kh8 {[%emt 0:00:25]} 32. Qd2 {[%emt 0:00:19]} Re1+ {[%emt 0:00:58]} 33. Qxe1 {[%emt 0:00:09]} gxf6 {[%emt 0:00:01]} 34. Qd2 {[%emt 0:00:09]} Qf8 {[%emt 0:00:54]} 35. Qe3 {[%emt 0:00:33]} b5 {[%emt 0:00:32]} 36. Qb6 {[%emt 0:00:37]} Qe8 {[%emt 0:00:25]} 37. Bf5 {[%emt 0:01:00]} Qc6 {[%emt 0:00:31]} 38. Qd8+ {[%emt 0:00:30]} Kg7 {[%emt 0:00:15]} 39. Qe7+ {[%emt 0:00:06]} Kg8 {[%emt 0:00:10]} 40. Be6+ {[%emt 0:00:00]} 1-0

[Event "EYCC Open-U16 2019"]
[Site "Bratislava"]
[Date "2019.08.08"]
[Round "7.24"]
[White "Fojt, Petr"]
[Black "Briem, Stephan"]
[Result "1-0"]
[ECO "B01"]
[WhiteElo "2140"]
[BlackElo "2223"]
[Annotator "NA"]
[PlyCount "75"]
[EventDate "2019.08.02"]
[EventType "swiss"]
[EventCountry "SVK"]
[SourceTitle "playchess.com"]
[Source "ChessBase"]
[SourceQuality "1"]
[TimeControl "40/5400+30:1800+30"]

1. e4 {[%emt 0:00:00]} d5 {[%emt 0:00:04]} 2. exd5 {[%emt 0:00:00]} Qxd5 {[%emt 0:00:06]} 3. Nc3 {[%emt 0:00:01]} Qd6 {[%emt 0:00:04]} 4. d4 {[%emt 0:00:15]} Nf6 {[%emt 0:00:03]} 5. Nf3 {[%emt 0:00:42]} c6 {[%emt 0:00:09]} 6. h3 {[%emt 0:02:18]} Bf5 {[%emt 0:00:24]} 7. g4 {[%emt 0:04:26]} Bg6 {[%emt 0:01:44]} 8. Ne5 {[%emt 0:03:16]} Nbd7 {[%emt 0:21:09]} 9. f4 {[%emt 0:25:09]} e6 {[%emt 0:09:07]} 10. Bg2 {[%emt 0:08:32]} Nd5 {[%emt 0:07:35]} 11. O-O {[%emt 0:16:26]} Nxc3 {[%emt 0:05:18]} 12. bxc3 {[%emt 0:00:12]} Nxe5 {[%emt 0:01:57]} 13. fxe5 {[%emt 0:00:53]} Qd7 {[%emt 0:01:35]} 14. Rb1 {[%emt 0:03:16]} Be7 {[%emt 0:02:19]} 15. Bf4 {[%emt 0:02:08]} O-O {[%emt 0:07:20]} 16. Qe2 {[%emt 0:03:50]} Rac8 {[%emt 0:05:39]} 17. Bg3 {[%emt 0:01:22]} b6 {[%emt 0:02:08]} 18. h4 {[%emt 0:01:22]} h6 {[%emt 0:00:50]} 19. Rbd1 {[%emt 0:01:46]} b5 {[%emt 0:07:06]} 20. Kh2 {[%emt 0:06:09]} Qd8 {[%emt 0:02:49]} 21. Kh3 {[%emt 0:02:25]} Qa5 {[%emt 0:01:03]} 22. Qe3 {[%emt 0:01:19]} b4 {[%emt 0:12:34]} 23. Bf4 {[%emt 0:10:45]} Qa3 {[%emt 0:04:18]} 24. Rf3 {[%emt 0:01:55]} h5 {[%emt 0:02:53]} 25. gxh5 {[%emt 0:02:29]} Bf5+ {[%emt 0:02:45]} 26. Kh2 {[%emt 0:00:40]} Qxc3 {[%emt 0:00:53]} 27. Qf2 {[%emt 0:00:53]} Qxc2 {[%emt 0:00:36]} 28. Rd2 {[%emt 0:00:04]} Qb1 {[%emt 0:00:42]} 29. Qg3 {[%emt 0:00:46]} Kh7 {[%emt 0:00:44]} 30. Rf1 {[%emt 0:00:18]} Qxf1 {[%emt 0:00:32]} 31. Bxf1 {[%emt 0:00:05]} c5 {[%emt 0:00:06]} 32. Bd3 {[%emt 0:00:33]} Bxd3 {[%emt 0:00:29]} 33. Qxd3+ {[%emt 0:00:05]} Kh8 {[%emt 0:00:39]} 34. Rg2 {[%emt 0:00:36]} c4 {[%emt 0:00:18]} 35. Qg3 {[%emt 0:00:21]} Rg8 {[%emt 0:00:04]} 36. Bg5 {[%emt 0:00:36]} Bf8 {[%emt 0:01:15]} 37. Bf6 {[%emt 0:01:10]} Kh7 {[%emt 0:00:33]} 38. Qg4 {[%emt 0:00:16]} 1-0